[Event "87th Spanish Championship 2022"]
[Site "Linares"]
[Date "2022.08.11"]
[Round "1.25"]
[White "Comellas Martos, Lidia"]
[Black "Valmana Canto, Jaime"]
[Result "0-1"]
[ECO "B30"]
[WhiteElo "2132"]
[BlackElo "2406"]
[Annotator "TA"]
[PlyCount "112"]
[EventDate "2022.08.11"]
[EventType "swiss"]
[EventCountry "ESP"]
[SourceTitle "playchess.com"]
[Source "ChessBase"]
[SourceQuality "1"]
[TimeControl "5400+30"]

{[%evp 9,112,32,30,20,21,23,19,14,12,-15,-11,-19,-6,-22,0,0,0,-43,0,-40,-40,-47,11,10,20,18,39,39,98,-133,-119,-138,-117,-93,-104,-94,-90,-111,-41,-32,0,0,0,0,0,0,0,0,184,183,181,175,176,183,184,0,12,11,5,0,10,10,66,41,54,54,68,0,73,12,25,31,89,0,112,0,10,0,0,0,0,0,0,0,0,-8,-11,-10,-10,-10,-11,-14,-16,-8,-8,-40,-39,-47,-40,-29963,-29962,-29968,-29968,-608,-547]} 1. e4 {[%emt 0:00:03]} c5 {[%emt 0:00:36]} 2. Nf3 {[%emt 0:00:16]} Nc6 {[%emt 0:00:09]} 3. Bb5 {[%emt 0:00:21]} Nf6 {[%emt 0:00:08]} 4. Bxc6 {[%emt 0:01:50]} dxc6 {[%emt 0:00:07]} 5. d3 {[%emt 0:01:21]} Bg4 {[%emt 0:00:08][%cal Oc5c4]} 6. Nbd2 {[%emt 0:00:54] B30: Sicilian: 2...Nc6 3 Bb5, lines without ...g6.} Nd7 {[%emt 0:00:21]} 7. h3 {[%emt 0:01:09]} Bh5 {[%emt 0:00:08]} 8. g4 {[%emt 0:01:12] The position is equal.} Bg6 {[%emt 0:00:07]} 9. e5 {[%emt 0:07:16][%cal Oe5e6]} e6 {[%emt 0:02:04]} 10. Qe2 {[%emt 0:01:56] [#]} h5 $146 {[%emt 0:01:54]} ({Predecessor:} 10... Qc7 11. a3 O-O-O 12. Nc4 b5 13. Nd6+ Bxd6 14. exd6 Qxd6 15. Be3 Qd5 16. Rg1 Nb6 {½-½ (48) David,A (2534)-Godzwon,I (2336) Paleochora 2022}) 11. Rg1 {[%emt 0:05:19]} hxg4 {[%emt 0:00:13]} 12. hxg4 {[%emt 0:00:18]} Qc7 {[%emt 0:00:08]} 13. Nb3 {[%emt 0:04:31]} a5 {[%emt 0:13:15]} 14. a4 {[%emt 0:01:11]} b5 {[%emt 0:00:07]} 15. Bd2 {[%emt 0:16:48]} Nb6 {[%emt 0:08:14]} ({Black should play} 15... c4 $15 16. dxc4 bxc4) 16. Bxa5 $11 {[%emt 0:12:08]} bxa4 {[%emt 0:01:16]} 17. Rxa4 {[%emt 0:02:08]} Qb7 {[%emt 0:00:14]} 18. Ra1 {[%emt 0:02:25]} Nd5 {[%emt 0:00:19]} (18... c4 $14 19. dxc4 Nd7) 19. Bc3 $2 {[%emt 0:14:14]} (19. Nfd2 $1 $16 {stays on course.}) 19... Rxa1+ $17 {[%emt 0:01:32]} 20. Nxa1 {[%emt 0:01:06]} Nxc3 {[%emt 0:00:04] Black is more active.} 21. bxc3 {[%emt 0:00:15]} c4 {[%emt 0:02:19]} 22. Kd2 {[%emt 0:06:11]} Rh3 {[%emt 0:03:16]} 23. dxc4 {[%emt 0:03:16]} c5 {[%emt 0:00:33]} ({Not} 23... Qb2 24. Qe3 $15) (23... Be7 $1 $17 24. Nb3 c5) 24. Rg3 $1 $15 {[%emt 0:02:19]} Rh1 {[%emt 0:04:05]} 25. Rg1 {[%emt 0:01:41]} Rxg1 {[%emt 0:00:20]} 26. Nxg1 {[%emt 0:00:06]} Be7 {[%emt 0:00:27] Strongly threatening ...Bg5+.} 27. f4 {[%emt 0:01:44] Against Bg5} Qh1 {[%emt 0:00:12]} 28. Qf3 {[%emt 0:01:13]} Qh2+ {[%emt 0:01:25]} (28... Qxg1 $11 {and Black is okay.} 29. Qc6+ Kd8 30. Qb6+ Ke8 31. Qc6+ Kd8 32. Qb6+ Ke8 33. Qc6+) 29. Ne2 $18 {[%emt 0:00:22] And now Qc6+ would win.} f5 {[%emt 0:00:12]} 30. exf6 $1 {[%emt 0:01:17]} gxf6 {[%emt 0:00:42]} 31. Nb3 {[%emt 0:04:24][%cal Ob3c5]} Kf7 {[%emt 0:01:05]} 32. f5 $2 {[%emt 0:03:48]} (32. Qb7 $18) 32... exf5 $11 {[%emt 0:00:23]} 33. Qd5+ {[%emt 0:00:54]} Kg7 $1 $132 {[%emt 0:01:40][%mdl 2048] Black is fighting back} 34. gxf5 {[%emt 0:00:24]} Qh6+ {[%emt 0:03:56]} 35. Kd1 {[%emt 0:01:36]} Bf7 {[%emt 0:00:29]} (35... Bh5 $11) 36. Qg2+ {[%emt 0:01:05]} (36. Qe4 $5 {[%cal Re4e7]} Bf8 37. Nd2 $16) 36... Kf8 {[%emt 0:00:45]} 37. Qa8+ {[%emt 0:00:26]} Kg7 {[%emt 0:00:14]} 38. Qg2+ {[%emt 0:00:04]} (38. Qe4 $14 Bf8 39. Nd2) 38... Kh7 {[%emt 0:00:05]} (38... Kf8 $1 $11) 39. Qe4 {[%emt 0:01:25]} (39. Nd2 $16) 39... Bd6 {[%emt 0:01:29]} 40. Qb7 {[%emt 0:00:24]} Qh5 {[%emt 0:08:08] [#]} (40... Kg8 $14) 41. Kd2 {[%emt 0:00:57]} ({Better is} 41. Kc1 $1 $16) 41... Bf8 {[%emt 0:01:48] [#]} (41... Qg5+ $11 42. Kd1 Kg7) 42. Qe4 {[%emt 0:00:25]} (42. Kc1 $1 $16) 42... Qg5+ {[%emt 0:01:18]} 43. Kd1 {[%emt 0:00:26]} Bh5 {[%emt 0:01:12]} 44. Qb7+ {[%emt 0:00:31]} Kh8 {[%emt 0:00:59]} 45. Qh1 {[%emt 0:00:08] Against Qg1+} Qxf5 {[%emt 0:03:13]} 46. Nbc1 {[%emt 0:00:22]} Bh6 {[%emt 0:00:54] ...Qg4 is the strong threat.} 47. Qa8+ {[%emt 0:00:18]} Kh7 {[%emt 0:01:48][%cal Rf5f1]} 48. Qb7+ {[%emt 0:00:04]} Kg6 {[%emt 0:00:07][%cal Rf5f1] Dancing on a razor blade.} 49. Qg2+ {[%emt 0:00:08]} Bg5 {[%emt 0:00:02] White must now prevent ...Qf4.} 50. Nd3 {[%emt 0:00:17] Inhibits Qf4.} Bf3 {[%emt 0:00:06][%mdl 1024] Black has compensation.} 51. Qf2 {[%emt 0:01:47]} Qg4 {[%emt 0:00:50] aiming for ...Bh4.} 52. Ne1 {[%emt 0:01:08]} Qd7+ {[%emt 0:01:23]} 53. Nd3 {[%emt 0:00:16]} Qb7 {[%emt 0:00:30] ( -> ...Qb1+)} 54. Ndc1 $2 {[%emt 0:00:18][%mdl 8192]} (54. Ke1 $15) 54... Bh5 {[%emt 0:00:36] This bishop pair is nice.} 55. Qg3 {[%emt 0:00:43]} Qb1 {[%emt 0:00:21][%csl Gg5][%cal Rb1c1]} 56. Qd3+ {[%emt 0:00:44]} Kh6 {[%emt 0:00:20] Quite a comeback for Black.  Weighted Error Value: White=0.40/Black=0.22 (precise)} 0-1

[Event "87th Spanish Championship 2022"]
[Site "Linares"]
[Date "2022.08.11"]
[Round "1.26"]
[White "Argandona Riveiro, Inigo"]
[Black "Garcia Escoda, Marc"]
[Result "1-0"]
[ECO "A34"]
[WhiteElo "2393"]
[BlackElo "2130"]
[Annotator "TA"]
[PlyCount "51"]
[EventDate "2022.08.11"]
[EventType "swiss"]
[EventCountry "ESP"]
[SourceTitle "playchess.com"]
[Source "ChessBase"]
[SourceQuality "1"]
[TimeControl "5400+30"]

{[%evp 14,51,-12,-31,-7,-30,-33,-34,-11,-45,24,27,22,32,19,-8,-13,-22,-22,0,-21,-47,45,47,54,58,64,60,64,59,55,14,92,91,570,557,818,814,992,775]} 1. c4 {[%emt 0:06:44]} Nf6 {[%emt 0:00:10]} 2. Nf3 {[%emt 0:01:07]} c5 {[%emt 0:00:15]} 3. Nc3 {[%emt 0:01:03]} d5 {[%emt 0:00:22]} 4. cxd5 {[%emt 0:00:07]} Nxd5 {[%emt 0:00:09]} 5. g3 {[%emt 0:00:10]} Nc6 {[%emt 0:00:21]} 6. Bg2 {[%emt 0:00:01]} Nc7 {[%emt 0:00:12]} 7. b3 {[%emt 0:02:20]} e5 {[%emt 0:03:14]} 8. Bb2 {[%emt 0:00:04]} Be7 {[%emt 0:02:23] A34: Symmetrical English: 2 Nc3, lines with ...d5.} 9. Qb1 {[%emt 0:01:05]} O-O {[%emt 0:05:31]} 10. O-O {[%emt 0:00:13] [#]} Bd7 $146 {[%emt 0:03:33] Black is slightly better.} ({Predecessor:} 10... f5 11. d3 Bf6 12. Rd1 Be6 13. Rd2 Qe8 14. Qf1 g5 15. e3 g4 16. Ne1 Rd8 17. Ne2 {0-1 (39) Mulenko,A (2136)-Bessarab,V (1759) Sochi 2019}) 11. Rd1 {[%emt 0:00:43]} Ne6 {[%emt 0:04:40]} ({Black should try} 11... Rc8 $15) 12. e3 $11 {[%emt 0:02:45]} Ng5 {[%emt 0:07:23]} 13. Nxg5 {[%emt 0:13:43]} Bxg5 {[%emt 0:00:08]} 14. f4 {[%emt 0:00:14]} exf4 {[%emt 0:04:03]} 15. gxf4 {[%emt 0:00:06]} Bf6 {[%emt 0:01:01]} 16. Ne4 {[%emt 0:01:29] Threatens to win with Bxf6.} Bxb2 {[%emt 0:00:19]} 17. Ng5 {[%emt 0:00:16][%csl Gg5][%cal Rb1h7] [#]} Bf5 {[%emt 0:10:35]} 18. Qxf5 $14 {[%emt 0:00:20][%csl Gg5][%cal Rf5h7]} g6 {[%emt 0:00:07]} 19. Qh3 {[%emt 0:00:03][%csl Gg5][%cal Rh3h7]} h5 {[%emt 0:00:13]} 20. Rab1 $40 {[%emt 0:00:24][%mdl 128] White has some attack.} Bg7 {[%emt 0:03:03]} 21. Bxc6 {[%emt 0:04:32]} bxc6 {[%emt 0:00:14]} 22. Rbc1 {[%emt 0:00:27]} Qa5 {[%emt 0:12:12] [#]} (22... Qe7 $11 {remains equal.}) 23. f5 $1 $16 {[%emt 0:08:07] Black must now prevent fxg6.} Rfe8 $2 {[%emt 0:08:59][%mdl 8192]} (23... c4 $16) 24. fxg6 $18 {[%emt 0:02:53] White is clearly winning.} fxg6 {[%emt 0:09:09]} 25. Qd7 {[%emt 0:00:16] White wants to mate with Qf7+.} Kh8 {[%emt 0:04:28]} 26. Qf7 {[%emt 0:01:36] Weighted Error Value: White=0.08 (flawless) /Black=0.69} 1-0

[Event "87th Spanish Championship 2022"]
[Site "Linares"]
[Date "2022.08.11"]
[Round "1.27"]
[White "Salazar de la Cruz, Jose Maria"]
[Black "Tejedor Fuente, Enrique"]
[Result "0-1"]
[ECO "B30"]
[WhiteElo "2127"]
[BlackElo "2419"]
[Annotator "TA"]
[PlyCount "62"]
[EventDate "2022.08.11"]
[EventType "swiss"]
[EventCountry "ESP"]
[SourceTitle "playchess.com"]
[Source "ChessBase"]
[SourceQuality "1"]
[TimeControl "5400+30"]

{[%evp 12,62,29,21,15,5,18,14,7,10,14,6,16,-20,0,0,0,0,0,0,0,0,-8,-9,0,-4,0,-51,-51,-51,-51,-56,-54,-57,-61,-120,-98,-166,-152,-179,-176,-160,-155,-182,-117,-166,-142,-284,-299,-228,-176,-585,-594]} 1. e4 {[%emt 0:00:08]} c5 {[%emt 0:00:07]} 2. Nf3 {[%emt 0:00:07]} Nc6 {[%emt 0:00:16]} 3. Bb5 {[%emt 0:00:00]} Qb6 4. Nc3 {[%emt 0:00:04]} e6 {[%emt 0:03:17]} 5. O-O {[%emt 0:00:19]} Nge7 {[%emt 0:01:43]} 6. Re1 Nd4 {[%emt 0:10:15]} 7. Bf1 {[%emt 0:03:26]} Nec6 {[%emt 0:08:50] B30: Sicilian: 2...Nc6 3 Bb5, lines without ...g6.} 8. d3 Be7 {[%cal Bf8e7,Be7f6,Bf6d4][%mdl 32]} 9. Nxd4 {[%emt 0:32:55]} cxd4 {[%emt 0:02:12] The position is equal.} 10. Ne2 {[%emt 0:04:33]} O-O {[%emt 0:01:25] [#]} 11. c3 $146 {[%emt 0:03:27]} ({Predecessor:} 11. c4 Bb4 12. Bd2 e5 13. f4 d6 14. f5 a5 15. f6 gxf6 16. Bh6 Qd8 17. Ng3 Bxe1 18. Qxe1 {0-1 (60) Rath,U (2405)-Larsen,B (2620) Esbjerg 1978}) 11... Bf6 {[%emt 0:21:38]} 12. g3 {[%emt 0:00:30]} Qa5 {[%emt 0:10:32]} 13. cxd4 {[%emt 0:05:02]} Nxd4 {[%emt 0:00:42]} 14. Nxd4 {[%emt 0:00:06]} Bxd4 {[%emt 0:00:03]} 15. Bd2 {[%emt 0:00:06]} Qb6 {[%emt 0:00:46]} 16. Re2 {[%emt 0:00:56]} d6 {[%emt 0:04:05]} (16... Qxb2 $2 17. Rb1 Qa3 18. Bb4 $16) 17. Bc3 {[%emt 0:00:17]} Bd7 {[%emt 0:02:16]} 18. Rc1 {[%emt 0:00:23][%cal Ba1c1,Bc1c7,Bc7b7][%mdl 32]} Rac8 {[%emt 0:01:14]} 19. Rec2 {[%emt 0:00:01]} (19. Bxd4 $11 Qxd4 20. Rec2) 19... Bxc3 $15 {[%emt 0:01:39]} 20. Rxc3 {[%emt 0:00:35]} Qxb2 {[%emt 0:05:30]} 21. Rxc8 {[%emt 0:00:05]} Bxc8 {[%emt 0:00:28]} ({Reject} 21... Rxc8 22. Rxc8+ Bxc8 23. Qa4 $11) 22. Rc7 {[%emt 0:00:02]} e5 {[%emt 0:00:49]} (22... Qxa2 $2 23. Qc1 $18) 23. a4 (23. Rc2 $15 Qb6 24. d4) 23... Qb6 {[%emt 0:03:20]} 24. Qc2 {[%emt 0:04:48] [#]} (24. Rc1 $17 {was necessary.}) 24... Be6 $1 $19 {[%emt 0:00:14]} 25. a5 {[%emt 0:00:03]} Qxa5 {[%emt 0:00:39] Threatens to win with ...Qb6.} 26. Rxb7 {[%emt 0:00:15]} Rc8 {[%emt 0:02:35]} 27. Qb2 {[%emt 0:00:35]} h5 {[%emt 0:08:15]} (27... h6 $19 {White must now prevent ...Qe1.} 28. Rb4 Qc7) 28. Kg2 {[%emt 0:04:12]} (28. f4 $17 exf4 29. gxf4) 28... h4 {[%emt 0:02:35]} 29. f4 (29. gxh4 $17 Qd8 30. Rxa7) 29... exf4 {[%emt 0:03:54]} 30. gxf4 {[%emt 0:00:32]} Qe1 {[%emt 0:01:45]} 31. Qf2 {[%emt 0:01:03] [#] Inhibits Qe3.} (31. f5 {nothing else works.} Qd1 32. Rb8 (32. Qe2 $2 Rc2 $19) 32... Qg4+ 33. Kh1 Qf3+ 34. Kg1) 31... Bh3+ $1 {[%emt 0:00:33][%mdl 512] Weighted Error Value: White=0.44/Black=0.10 (very precise)} 0-1

[Event "87th Spanish Championship 2022"]
[Site "Linares"]
[Date "2022.08.11"]
[Round "1.28"]
[White "Alonso Garcia, Aaron"]
[Black "Maldonado Mena, German"]
[Result "1-0"]
[ECO "B66"]
[WhiteElo "2374"]
[BlackElo "2061"]
[Annotator "RC"]
[PlyCount "77"]
[EventDate "2022.08.11"]
[EventType "swiss"]
[EventCountry "ESP"]
[SourceTitle "playchess.com"]
[Source "ChessBase"]
[SourceQuality "1"]
[TimeControl "5400+30"]

1. e4 {[%emt 0:05:38]} c5 {[%emt 0:00:20]} 2. Nf3 {[%emt 0:00:07]} Nc6 {[%emt 0:00:03]} 3. d4 {[%emt 0:00:04]} cxd4 {[%emt 0:00:06]} 4. Nxd4 {[%emt 0:00:03]} Nf6 {[%emt 0:00:10]} 5. Nc3 {[%emt 0:00:02]} d6 {[%emt 0:00:06]} 6. Bg5 {[%emt 0:00:40]} e6 {[%emt 0:01:00]} 7. Qd2 {[%emt 0:00:05]} a6 {[%emt 0:00:36]} 8. Nxc6 {[%emt 0:00:30]} bxc6 {[%emt 0:00:40]} 9. O-O-O {[%emt 0:00:03]} Be7 {[%emt 0:04:09]} 10. Bxf6 {[%emt 0:00:37]} gxf6 {[%emt 0:02:11]} 11. Bc4 {[%emt 0:00:10]} Qa5 {[%emt 0:04:32]} 12. Rhe1 {[%emt 0:08:37]} Rb8 {[%emt 0:07:56]} 13. Bb3 {[%emt 0:00:28]} Bd7 {[%emt 0:07:32]} 14. f4 {[%emt 0:04:03]} f5 {[%emt 0:03:21]} 15. Qd3 {[%emt 0:12:02]} fxe4 {[%emt 0:09:41]} 16. Nxe4 {[%emt 0:00:09]} d5 {[%emt 0:00:55]} 17. Qd4 {[%emt 0:02:40]} Rg8 {[%emt 0:02:26]} 18. Nf6+ {[%emt 0:04:56]} Bxf6 {[%emt 0:00:10]} 19. Qxf6 {[%emt 0:00:02]} Rxb3 {[%emt 0:15:58]} 20. axb3 {[%emt 0:00:13]} Qa1+ {[%emt 0:01:02]} 21. Kd2 {[%emt 0:00:01]} Rxg2+ {[%emt 0:00:09]} 22. Re2 {[%emt 0:01:11]} Qa5+ {[%emt 0:01:30]} 23. Qc3 {[%emt 0:01:16]} Rxe2+ {[%emt 0:01:00]} 24. Kxe2 {[%emt 0:00:03]} Qb5+ {[%emt 0:02:56]} 25. Kf2 {[%emt 0:01:31]} Ke7 {[%emt 0:01:03]} 26. b4 {[%emt 0:00:17]} Kd6 {[%emt 0:03:22]} 27. Qe5+ {[%emt 0:00:02]} Ke7 {[%emt 0:00:07]} 28. Qd4 {[%emt 0:00:38]} Kd6 {[%emt 0:00:11]} 29. Rg1 {[%emt 0:01:16]} a5 {[%emt 0:02:21]} 30. bxa5 {[%emt 0:07:04]} Qxa5 {[%emt 0:00:07]} 31. b4 {[%emt 0:00:15]} Qb5 {[%emt 0:04:41]} 32. Rg7 {[%emt 0:01:41]} Ke7 {[%emt 0:03:56]} 33. Rxh7 {[%emt 0:00:09]} Qb8 {[%emt 0:00:35]} 34. Rh6 {[%emt 0:01:00]} Qg8 {[%emt 0:00:30]} 35. Qf6+ {[%emt 0:01:14]} Kd6 {[%emt 0:00:06]} 36. Qe5+ {[%emt 0:00:01]} Ke7 {[%emt 0:00:08]} 37. f5 {[%emt 0:00:48]} Qf8 {[%emt 0:02:57]} 38. Rh8 {[%emt 0:00:23]} f6 {[%emt 0:00:07]} 39. Rh7+ {[%emt 0:00:03]} 1-0

[Event "87th Spanish Championship 2022"]
[Site "Linares"]
[Date "2022.08.11"]
[Round "1.29"]
[White "Arroyo Rodriguez, Jesus"]
[Black "Ingunza Curro, Andres"]
[Result "0-1"]
[ECO "B62"]
[WhiteElo "2100"]
[BlackElo "2370"]
[Annotator "TA"]
[PlyCount "145"]
[EventDate "2022.08.11"]
[EventType "swiss"]
[EventCountry "ESP"]
[SourceTitle "playchess.com"]
[Source "ChessBase"]
[SourceQuality "1"]
[TimeControl "5400+30"]

{[%evp 12,145,31,6,6,4,-5,-27,-16,-88,54,41,38,46,54,12,15,16,25,12,20,12,16,0,31,0,11,-47,-84,-72,32,25,52,38,97,50,68,-70,-62,-65,-68,-64,-77,-92,-85,-108,-107,-124,-135,-124,-104,-105,-104,-120,-126,-127,-102,-117,-98,-110,-104,-119,-124,-139,-114,-139,-96,-137,-127,-141,-125,-143,-13,-20,-20,-23,-22,-163,-158,-210,-162,-230,-170,-216,-204,-235,-229,-229,-158,-274,-128,-285,-268,-282,-296,-297,-252,-253,-252,-239,-243,-254,-242,-232,-221,-218,-226,-1069,-291,-264,-213,-226,-210,-225,-210,-209,-205,-236,-236,-236,-236,-236,-236,-236,-156,-125,-8,-236,-236,-242,-8,-32,-8,-8,-8,-100]} 1. e4 {[%emt 0:01:49]} c5 {[%emt 0:00:29]} 2. Nf3 {[%emt 0:00:22]} d6 {[%emt 0:00:30]} 3. d4 {[%emt 0:00:08]} cxd4 {[%emt 0:00:04]} 4. Nxd4 {[%emt 0:00:05]} Nf6 {[%emt 0:00:13]} 5. Nc3 {[%emt 0:00:03]} Nc6 {[%emt 0:00:51]} 6. Bg5 {[%emt 0:00:25]} e6 {[%emt 0:00:53]} 7. f4 {[%emt 0:01:39]} h6 {[%emt 0:04:58] B62: Sicilian: Richter-Rauzer: 6...e6: Unusual White 7th moves.} 8. Bh4 {[%emt 0:00:09]} Be7 {[%emt 0:00:43]} 9. Be2 {[%emt 0:09:00]} Qb6 {[%emt 0:14:27] [#] Black has an edge.} 10. Bf2 $146 {[%emt 0:02:35]} (10. Bxf6 $11 Bxf6 11. Nb3) ({Predecessor:} 10. Ndb5 Nxe4 11. Nxe4 Bxh4+ 12. g3 Be7 13. Nexd6+ Kf8 14. a4 Qc5 15. Qd2 a6 16. Ne4 {0-1 (66) Salazar Moran,A (1376)-Pandey,M (2067) LSS email 2018}) 10... Nxd4 {[%emt 0:01:18]} ({Better is} 10... Qxb2 $17 11. Ndb5 Qb4) 11. Bxd4 $14 {[%emt 0:01:49]} Qa5 {[%emt 0:00:11]} 12. O-O {[%emt 0:04:17]} O-O {[%emt 0:01:17]} 13. Kh1 {[%emt 0:03:23]} (13. Qe1 $5 {[%cal Rc3d5]}) 13... e5 {[%emt 0:02:26]} 14. Be3 {[%emt 0:01:13]} exf4 {[%emt 0:04:00]} 15. Bxf4 {[%emt 0:00:52]} Be6 {[%emt 0:01:07]} (15... Qb4 16. Qd3 $16) 16. Qe1 {[%emt 0:02:27][%cal Oc3d5]} (16. Bxd6 Rad8 17. Bxe7 Rxd1 18. Raxd1 Rc8 $15) 16... Rac8 {[%emt 0:04:30]} 17. Rd1 {[%emt 0:09:05]} Qb4 {[%emt 0:09:54]} 18. Qg3 {[%emt 0:05:14]} Kh8 {[%emt 0:01:13]} 19. Nd5 {[%emt 0:02:34]} (19. e5 $11 dxe5 20. Bxe5) 19... Bxd5 $15 {[%emt 0:02:26]} 20. exd5 {[%emt 0:02:08]} Qxb2 {[%emt 0:10:15]} (20... Rxc2 $17 21. Qe3 Rxb2 $1) 21. Qh3 $14 {[%emt 0:10:05]} Ng8 {[%emt 0:06:17][%cal Bf6g8,Bg8e7,Be7c6,Bc6d4][%mdl 32]} (21... Qxa2 $2 22. Bxh6 $1 Qa4 23. Bg5+ Kg8 24. Bd3 $18) 22. Bd3 {[%emt 0:01:39] This bishop pair is nice.} Rce8 {[%emt 0:01:48]} ({Black should try} 22... Rc7 $14) 23. Rde1 {[%emt 0:00:48]} (23. c4 $1 $16) 23... Qd4 {[%emt 0:02:35]} 24. Rxe7 {[%emt 0:04:24]} Rxe7 $15 {[%emt 0:00:12]} (24... Nxe7 $2 25. Bxh6 $1 {[%mdl 512]} Qxd3 26. cxd3 $18) 25. Bxd6 {[%emt 0:00:11]} Qxd5 {[%emt 0:00:32]} 26. Bxe7 {[%emt 0:01:58]} Nxe7 {[%emt 0:00:02]} 27. Qe3 {[%emt 0:00:47]} Nc6 {[%emt 0:03:42]} 28. a3 {[%emt 0:09:13][%cal Of1f6]} Qe5 {[%emt 0:00:32]} 29. Qc1 {[%emt 0:04:46]} b6 {[%emt 0:01:50]} 30. h3 {[%emt 0:00:32]} Nd4 {[%emt 0:05:34]} 31. Re1 {[%emt 0:02:24]} Qg3 {[%emt 0:02:49] Black is more active.} 32. Qd2 {[%emt 0:05:41]} Ne6 {[%emt 0:04:11]} 33. Re3 {[%emt 0:02:44]} Qg5 {[%emt 0:01:35]} 34. Qe1 {[%emt 0:00:27]} Rd8 {[%emt 0:05:55]} 35. Re5 {[%emt 0:01:43]} Qf4 {[%emt 0:00:43]} 36. Rf5 {[%emt 0:01:27]} Qc7 {[%emt 0:00:44]} 37. Re5 {[%emt 0:02:33]} Qc6 {[%emt 0:02:03]} 38. Qh4 {[%emt 0:01:11][%cal Oe5e6] Strongly threatening Rxe6!} Rd7 {[%emt 0:01:23]} 39. Qb4 {[%emt 0:01:16][%cal Oe5e6]} Kg8 40. Qg4 {[%emt 0:01:03]} Rd8 {[%emt 0:01:49]} 41. Qf5 {[%emt 0:00:52]} Ng5 {[%emt 0:01:21] Prevents Qh7+.} (41... g6 $17 42. Qf6 Rd6) 42. h4 $1 $11 {[%emt 0:01:37] Black must now prevent Re7.} g6 $36 {[%emt 0:00:33][%mdl 2048] White is under pressure.} 43. Qf4 {[%emt 0:00:41]} Ne6 {[%emt 0:00:35]} 44. Qf6 {[%emt 0:00:15]} (44. Qxh6 $11 {and White is okay.} Ng7 45. Qf4 (45. Re7 $2 Nf5 $19)) 44... Rd6 $19 {[%emt 0:00:27]} 45. Be4 {[%emt 0:01:49]} (45. Kh2 $17 {was worth a try.}) 45... Ng7 {[%emt 0:01:07] ( -> ...Rd1+)} 46. Qf3 {[%emt 0:01:54] Prevents Rd1+.} (46. Bxc6 $142 Rxf6 47. Bf3) 46... Qd7 {[%emt 0:00:59]} 47. Bd3 {[%emt 0:01:44]} (47. Rd5 $142) 47... Rd4 {[%emt 0:00:43]} 48. g3 {[%emt 0:00:42]} Qd6 {[%emt 0:01:04]} 49. Qe3 {[%emt 0:00:23]} Rd5 {[%emt 0:00:22]} 50. Re7 {[%emt 0:00:40]} (50. Rxd5 $17 Qxd5+ 51. Qe4 Qxe4+ 52. Bxe4) 50... a5 {[%emt 0:01:00]} (50... Qxa3 51. Rc7 Qa1+ 52. Kg2 $17) (50... Nf5 $19 51. Bxf5 Rxf5) 51. Kh2 $2 {[%emt 0:00:41]} (51. Ra7 $17 Ne6 52. Kg2) 51... Nf5 {[%emt 0:00:44]} 52. Bxf5 {[%emt 0:00:32]} ({Don't play} 52. Re8+ Kg7 53. Bxf5 Rxf5 54. Qc3+ Qf6 55. Qxf6+ Kxf6 $19) 52... Rxf5 {[%emt 0:00:01][%mdl 4096] Endgame KQR-KQR} (52... gxf5 53. Re8+ Kh7 54. Qf3 $17) (52... Rd2+ 53. Kh3 gxf5 54. Re8+ Kg7 55. Rc8 $17) 53. Re4 {[%emt 0:00:29]} Kg7 {[%emt 0:00:20]} 54. Qc3+ {[%emt 0:00:30]} Qf6 {[%emt 0:00:09]} 55. Qxf6+ {[%emt 0:00:30]} Kxf6 {[%emt 0:00:02] KR-KR} 56. Kg2 {[%emt 0:00:21]} Rc5 {[%emt 0:00:17]} 57. c4 {[%emt 0:00:28]} Re5 {[%emt 0:00:24]} 58. Rf4+ {[%emt 0:00:34]} Ke6 {[%emt 0:00:14]} 59. Kf3 $2 {[%emt 0:00:08]} (59. Rf2) 59... Re1 $2 {[%emt 0:00:22]} (59... Rf5 60. g4 Rxf4+ 61. Kxf4 f6) 60. Rd4 {[%emt 0:00:16]} Ra1 {[%emt 0:00:17]} 61. Rd3 {[%emt 0:00:11]} Rc1 {[%emt 0:00:06]} 62. Rb3 {[%emt 0:00:23]} Rxc4 {[%emt 0:00:46]} 63. Rxb6+ {[%emt 0:00:04]} Ke7 {[%emt 0:00:29]} 64. h5 Rc3+ {[%emt 0:01:20]} ({Not} 64... gxh5 65. Rxh6 Rc3+ 66. Kf4 $17) 65. Kf4 {[%emt 0:02:11]} gxh5 {[%emt 0:00:41]} ({Worse is} 65... Rxa3 66. hxg6 fxg6 67. Rxg6 $15) 66. Rxh6 {[%emt 0:00:20]} Rxa3 {[%emt 0:00:00]} 67. Rxh5 {[%emt 0:00:16]} a4 {[%emt 0:00:15]} 68. Ra5 Kd6 {[%emt 0:00:10]} (68... Kf6 $17 {aiming for ...Ra1.} 69. Ra6+ Kg7) 69. Ra7 $2 {[%emt 0:01:14] [#]} (69. Kf5 $11 {and White has nothing to worry.}) 69... Ra1 $1 {[%emt 0:01:05]} 70. Kg5 {[%emt 0:00:55]} Ke6 $2 {[%emt 0:00:31]} (70... a3 $19 {Hoping for ...a2.} 71. Kf6 a2) 71. Ra6+ $1 $11 {[%emt 0:00:32]} Ke7 {[%emt 0:00:15]} (71... Ke5 $5 {[%cal Ra4a3]} 72. Ra5+ Ke4 $17) 72. Ra7+ $1 Kf8 {...Kg7 is the strong threat.} 73. Kh6 {Weighted Error Value: White=0.41/Black=0.36} (73. Kf6 $11 {remains equal.} Rf1+ 74. Ke5) 0-1